{"text_format":"1","workbook":"xlsx","n_sheets":6,"sheets":["Accueil","Calcul de l'aide - APERR","Carte - Admissibilité - APERR","Versions du fichier","Menus","Log"],"not_rendered":{"charts":0,"images":6,"macros":1,"external_links":0,"defined_names":16,"comments":1,"pivot_tables":0},"unopened":[],"bounds":{"document_bytes":16777216,"sheet_cells":100000,"rows_first":2000,"rows_last":500,"rows_between":2000,"halvings":0,"cell_chars":16384,"cell_head_chars":4096},"cells_cut":0,"cells_raw":0,"read":"whole","date_system":"1900"}

{"sheet":"Accueil","index":0,"n_rows":22,"n_cols":4,"rows_kept":22,"cut":false,"hidden":false,"merged":[[14,3,14,13],[21,3,21,13],[17,3,18,13]]}
[]
[]
[]
[]
[]
[]
[]
[]
[]
[]
[]
[]
[]
[]
[null,null,null,"Programme d’investissement en aménagement forestier (PIAF) - Volet II\nForêt publique\nAnnexe au rapport et au calcul de l'aide à l’aménagement des forêts issues d’une perturbation d’origine naturelle sans intervention subséquente et dominées par l’érable rouge et les feuillus intolérants\n2020-2021\n"]
[]
[]
[null,null,null,"L'activation du contenu de ce fichier est requise afin d'assurer l'exécution des macro-commandes qui sont\nnécessaires à son bon fonctionnement."]
[]
[]
[]
[null,null,null,"https://support.office.com/fr-fr/article/activer-ou-d%C3%A9sactiver-les-macros-dans-les-fichiers-office-12b036fd-d140-4e74-b45e-16fed1a7e5c6"]

{"sheet":"Calcul de l'aide - APERR","index":1,"n_rows":132,"n_cols":101,"rows_kept":132,"cut":false,"hidden":true,"merged":[[43,0,43,8],[44,0,44,8],[45,0,45,8],[46,0,46,8],[47,0,49,5],[47,6,49,8],[50,0,50,5],[50,6,50,8],[51,0,52,5],[51,6,52,8],[53,0,53,5],[53,6,53,8],[62,0,63,5],[62,6,63,8],[64,0,64,5],[64,6,64,8],[54,0,54,8],[55,0,55,8],[56,0,56,8],[57,0,57,8],[58,0,60,5],[58,6,60,8],[61,0,61,5],[61,6,61,8],[39,0,39,5],[39,6,39,8],[40,0,41,5],[40,6,41,8],[42,0,42,5],[42,6,42,8],[32,0,32,8],[33,0,33,8],[34,0,34,8],[35,0,35,8],[36,0,38,5],[36,6,38,8],[0,0,0,8],[1,0,1,8],[2,7,2,8],[2,0,2,6],[4,0,4,8],[3,0,3,5],[3,6,3,8],[5,6,5,8],[6,6,6,8],[7,6,7,8],[8,6,8,8],[31,0,31,8],[28,0,28,5],[29,0,29,5],[30,0,30,5],[26,0,26,5],[27,0,27,8],[5,0,5,5],[6,0,6,5],[21,0,21,8],[7,0,7,5],[25,0,25,5],[24,0,24,5],[23,0,23,5],[10,0,10,5],[20,0,20,5],[12,0,12,5],[14,0,14,5],[15,0,15,5],[17,0,17,5],[18,0,18,5],[13,0,13,8],[10,6,10,8],[11,6,11,8],[11,0,11,5],[8,0,8,5],[19,0,19,5],[16,0,16,5],[22,0,22,5],[9,0,9,4]]}
[]
["Programme d’investissement en aménagement forestier (PIAF) - Volet II\nForêt publique\nAnnexe au rapport et au calcul de l'aide à l’aménagement des forêts issues d’une perturbation d’origine naturelle sans intervention subséquente et dominées par l’érable rouge et les feuillus intolérants\n2020-2021\n"]
[" *** Veuillez saisir les informations dans les cellules blanches (Planification et BGAD) et jaunes (Ministère) ***",null,null,null,null,null,null,"Version 1 : 2020-07-20"]
["Contexte d'utilisation",null,null,null,null,null,"Inscrire une valeur",null,null,null,null,null,null,null,null,null,null,null,null,null,null,null,null,null,null,null,null,null,null,null,null,null,null,null,null,null,null,null,null,null,null,null,null,null,null,null,null,null,null,null,null,null,null,null,null,null,null,null,null,null,null,null,null,null,null,null,null,null,null,null,null,null,null,null,null,null,null,null,null,null,null,null,null,null,null,null,null,null,null,null,null,null,null,null,null,null,null,null,null,"UAF","Zone"]
["Identification"]
["Unité d'aménagement (UA)",null,null,null,null,null,null,null,null,null,null,null,null,null,null,null,null,null,null,null,null,null,null,null,null,null,null,null,null,null,null,null,null,null,null,null,null,null,null,null,null,null,null,null,null,null,null,null,null,null,null,null,null,null,null,null,null,null,null,null,null,null,null,null,null,null,null,null,null,null,null,null,null,null,null,null,null,null,null,null,null,null,null,null,null,null,null,null,null,null,null,null,null,null,null,null,null,null,null,null,"NON"]
["Secteur d'intervention",null,null,null,null,null,null,null,null,null,null,null,null,null,null,null,null,null,null,null,null,null,null,null,null,null,null,null,null,null,null,null,null,null,null,null,null,null,null,null,null,null,null,null,null,null,null,null,null,null,null,null,null,null,null,null,null,null,null,null,null,null,null,null,null,null,null,null,null,null,null,null,null,null,null,null,null,null,null,null,null,null,null,null,null,null,null,null,null,null,null,null,null,null,null,null,null,"01151",151,0]
["Unité de compilation",null,null,null,null,null,null,null,null,null,null,null,null,null,null,null,null,null,null,null,null,null,null,null,null,null,null,null,null,null,null,null,null,null,null,null,null,null,null,null,null,null,null,null,null,null,null,null,null,null,null,null,null,null,null,null,null,null,null,null,null,null,null,null,null,null,null,null,null,null,null,null,null,null,null,null,null,null,null,null,null,null,null,null,null,null,null,null,null,null,null,null,null,null,null,null,null,"01152",152,0]
["Numéro de la prescription",null,null,null,null,null,null,null,null,null,null,null,null,null,null,null,null,null,null,null,null,null,null,null,null,null,null,null,null,null,null,null,null,null,null,null,null,null,null,null,null,null,null,null,null,null,null,null,null,null,null,null,null,null,null,null,null,null,null,null,null,null,null,null,null,null,null,null,null,null,null,null,null,null,null,null,null,null,null,null,null,null,null,null,null,null,null,null,null,null,null,null,null,null,null,null,null,"01251",153,0]
["Zone de tarification\nValeur requise pour le calcul",null,null,null,null,{"$f":"IFERROR(IF(ISNA(VLOOKUP($I$10,Zones_de_tarification_Admissibilite,1,FALSE)),\"Non_admissible\",\"Question\"),\"Question\")","v":"Non_admissible"},null,null,"Inscrire une valeur",null,null,null,null,null,null,null,null,null,null,null,null,null,null,null,null,null,null,null,null,null,null,null,null,null,null,null,null,null,null,null,null,null,null,null,null,null,null,null,null,null,null,null,null,null,null,null,null,null,null,null,null,null,null,null,null,null,null,null,null,null,null,null,null,null,null,null,null,null,null,null,null,null,null,null,null,null,null,null,null,null,null,null,null,null,null,null,null,"02661",185,80]
["Traitement (Code DICA)"]
["Traitement (Code RATF)"]
["Inscrire les renseignements dans la colonne associée au contexte d'utilisation",null,null,null,null,null,"Planification","BGAD","Ministère"]
["Admissibilité",null,null,null,null,null,null,null,null,null,null,null,null,null,null,null,null,null,null,null,null,null,null,null,null,null,null,null,null,null,null,null,null,null,null,null,null,null,null,null,null,null,null,null,null,null,null,null,null,null,null,null,null,null,null,null,null,null,null,null,null,null,null,null,null,null,null,null,null,null,null,null,null,null,null,null,null,null,null,null,null,null,null,null,null,null,null,null,null,null,null,null,null,null,null,null,null,"01253",155,0]
["Secteur d’intervention où l’ensemble des peuplements sont issus d’une perturbation d’origine naturelle sans intervention subséquente et âgés d’au moins 50 ans ?",null,null,null,null,null,null,null,null,null,null,null,null,null,null,null,null,null,null,null,null,null,null,null,null,null,null,null,null,null,null,null,null,null,null,null,null,null,null,null,null,null,null,null,null,null,null,null,null,null,null,null,null,null,null,null,null,null,null,null,null,null,null,null,null,null,null,null,null,null,null,null,null,null,null,null,null,null,null,null,null,null,null,null,null,null,null,null,null,null,null,null,null,null,null,null,null,"02251",157,0]
["Secteur d'intervention bénéficiant d'une autre aide PIAF  ?\nLe cas échéant, inscrire le montant à l'hectare ($/ha) à la ligne suivante :"]
["Montant de l'aide déjà accordée ($/ha) en vertu du\nProgramme d'investissement en aménagement forestier (PIAF)"]
["Scénario sylvicole de base, intensif ou d'élite ?",null,null,null,null,null,null,null,null,null,null,null,null,null,null,null,null,null,null,null,null,null,null,null,null,null,null,null,null,null,null,null,null,null,null,null,null,null,null,null,null,null,null,null,null,null,null,null,null,null,null,null,null,null,null,null,null,null,null,null,null,null,null,null,null,null,null,null,null,null,null,null,null,null,null,null,null,null,null,null,null,null,null,null,null,null,null,null,null,null,null,null,null,null,null,null,null,"02351",158,0]
["Volume des feuillus tolérants  ≤ 20 %  du volume total ?",null,null,null,null,null,null,null,null,null,null,null,null,null,null,null,null,null,null,null,null,null,null,null,null,null,null,null,null,null,null,null,null,null,null,null,null,null,null,null,null,null,null,null,null,null,null,null,null,null,null,null,null,null,null,null,null,null,null,null,null,null,null,null,null,null,null,null,null,null,null,null,null,null,null,null,null,null,null,null,null,null,null,null,null,null,null,null,null,null,null,null,null,null,null,null,null,"02351",158,0]
["Volume des feuillus intolérants et de l’érable rouge ≥ 40% du volume total  dont au moins 15% du volume total en érable rouge ? ",null,null,null,null,null,null,null,null,null,null,null,null,null,null,null,null,null,null,null,null,null,null,null,null,null,null,null,null,null,null,null,null,null,null,null,null,null,null,null,null,null,null,null,null,null,null,null,null,null,null,null,null,null,null,null,null,null,null,null,null,null,null,null,null,null,null,null,null,null,null,null,null,null,null,null,null,null,null,null,null,null,null,null,null,null,null,null,null,null,null,null,null,null,null,null,null,"02351",158,0]
["Récolte réalisée par coupe de régénération et > 50% de la surface terrière est récoltée ?",null,null,null,null,null,null,null,null,null,null,null,null,null,null,null,null,null,null,null,null,null,null,null,null,null,null,null,null,null,null,null,null,null,null,null,null,null,null,null,null,null,null,null,null,null,null,null,null,null,null,null,null,null,null,null,null,null,null,null,null,null,null,null,null,null,null,null,null,null,null,null,null,null,null,null,null,null,null,null,null,null,null,null,null,null,null,null,null,null,null,null,null,null,null,null,null,"02351",158,0]
["Aide à l’aménagement des forêts issues d’une perturbation d’origine naturelle sans intervention subséquente et dominées\npar l’érable rouge et les feuillus intolérants",null,null,null,null,null,null,null,null,null,null,null,null,null,null,null,null,null,null,null,null,null,null,null,null,null,null,null,null,null,null,null,null,null,null,null,null,null,null,null,null,null,null,null,null,null,null,null,null,null,null,null,null,null,null,null,null,null,null,null,null,null,null,null,null,null,null,null,null,null,null,null,null,null,null,null,null,null,null,null,null,null,null,null,null,null,null,null,null,null,null,null,null,null,null,null,null,"02452",182,0]
["Volume net récolté Fi et ERR (m3/ha)",null,null,null,null,null,null,null,null,null,null,null,null,null,null,null,null,null,null,null,null,null,null,null,null,null,null,null,null,null,null,null,null,null,null,null,null,null,null,null,null,null,null,null,null,null,null,null,null,null,null,null,null,null,null,null,null,null,null,null,null,null,null,null,null,null,null,null,null,null,null,null,null,null,null,null,null,null,null,null,null,null,null,null,null,null,null,null,null,null,null,null,null,null,null,null,null,"02651",184,200]
["Volume net récolté SEPM (m3/ha)",null,null,null,null,null,null,null,null,null,null,null,null,null,null,null,null,null,null,null,null,null,null,null,null,null,null,null,null,null,null,null,null,null,null,null,null,null,null,null,null,null,null,null,null,null,null,null,null,null,null,null,null,null,null,null,null,null,null,null,null,null,null,null,null,null,null,null,null,null,null,null,null,null,null,null,null,null,null,null,null,null,null,null,null,null,null,null,null,null,null,null,null,null,null,null,null,"02651",184,200]
["Volume net récolté FT et Autres résineux (m3/ha)",null,null,null,null,null,null,null,null,null,null,null,null,null,null,null,null,null,null,null,null,null,null,null,null,null,null,null,null,null,null,null,null,null,null,null,null,null,null,null,null,null,null,null,null,null,null,null,null,null,null,null,null,null,null,null,null,null,null,null,null,null,null,null,null,null,null,null,null,null,null,null,null,null,null,null,null,null,null,null,null,null,null,null,null,null,null,null,null,null,null,null,null,null,null,null,null,"02651",184,200]
["Volume net récolté toutes essences (m3/ha)",null,null,null,null,null,{"$f":"IFERROR(IF(AND(ISBLANK($G$23),ISBLANK($G$24),ISBLANK($G$25))=TRUE,0,SUM($G$23:$G$25)),0)","v":0},{"$f":"IFERROR(IF(AND(ISBLANK($H$23),ISBLANK($H$24),ISBLANK($H$25))=TRUE,0,SUM($H$23:$H$25)),0)","v":0},{"$f":"IFERROR(IF(AND(ISBLANK($I$23),ISBLANK($I$24),ISBLANK($I$25))=TRUE,0,SUM($I$23:$I$25)),0)","v":0},null,null,null,null,null,null,null,null,null,null,null,null,null,null,null,null,null,null,null,null,null,null,null,null,null,null,null,null,null,null,null,null,null,null,null,null,null,null,null,null,null,null,null,null,null,null,null,null,null,null,null,null,null,null,null,null,null,null,null,null,null,null,null,null,null,null,null,null,null,null,null,null,null,null,null,null,null,null,null,null,null,null,null,null,null,null,null,null,"02651",184,200]
["Superficie (hectare)",null,null,null,null,null,null,null,null,null,null,null,null,null,null,null,null,null,null,null,null,null,null,null,null,null,null,null,null,null,null,null,null,null,null,null,null,null,null,null,null,null,null,null,null,null,null,null,null,null,null,null,null,null,null,null,null,null,null,null,null,null,null,null,null,null,null,null,null,null,null,null,null,null,null,null,null,null,null,null,null,null,null,null,null,null,null,null,null,null,null,null,null,null,null,null,null,"02451",181,80]
["Résumé de l'aide à l’aménagement des forêts issues d’une perturbation d’origine naturelle sans intervention subséquente et\ndominées par l’érable rouge et les feuillus intolérants",null,null,null,null,null,null,null,null,null,null,null,null,null,null,null,null,null,null,null,null,null,null,null,null,null,null,null,null,null,null,null,null,null,null,null,null,null,null,null,null,null,null,null,null,null,null,null,null,null,null,null,null,null,null,null,null,null,null,null,null,null,null,null,null,null,null,null,null,null,null,null,null,null,null,null,null,null,null,null,null,null,null,null,null,null,null,null,null,null,null,null,null,null,null,null,null,"06452",257,280]
["Aide brute - incluant le montant PIAF déjà accordé, le cas échant ($/ha)",null,null,null,null,null,{"$f":"IF(AND(EXACT(UPPER($G$16),UPPER(Menus!$A$2)),ISNUMBER($G$17)=FALSE),\"Voir G17\",IF(IF((Menus!$B$23+Menus!$B$24*$G$23+Menus!$B$25*$G$24)<0,0,IF(ROUND(((Menus!$B$23+Menus!$B$24*$G$23+Menus!$B$25*$G$24)*VLOOKUP($I$10,Tableau_APERR,3,FALSE)*Menus!$B$38*Menus!$B$40*Menus!$B$28*Menus!$B$31*Menus!$B$32*Menus!$B$33*Menus!$B$34),2)>VLOOKUP($I$10,Tableau_APERR,4,FALSE),ROUND(VLOOKUP($I$10,Tableau_APERR,4,FALSE),2),ROUND(((Menus!$B$23+Menus!$B$24*$G$23+Menus!$B$25*$G$24)*VLOOKUP($I$10,Tableau_APERR,3,FALSE)*Menus!$B$38*Menus!$B$40*Menus!$B$28*Menus!$B$31*Menus!$B$32*Menus!$B$33*Menus!$B$34),2)))<0,0,IF((Menus!$B$23+Menus!$B$24*$G$23+Menus!$B$25*$G$24)<0,0,IF(ROUND(((Menus!$B$23+Menus!$B$24*$G$23+Menus!$B$25*$G$24)*VLOOKUP($I$10,Tableau_APERR,3,FALSE)*Menus!$B$38*Menus!$B$40*Menus!$B$28*Menus!$B$31*Menus!$B$32*Menus!$B$33*Menus!$B$34),2)>VLOOKUP($I$10,Tableau_APERR,4,FALSE),ROUND(VLOOKUP($I$10,Tableau_APERR,4,FALSE),2),ROUND(((Menus!$B$23+Menus!$B$24*$G$23+Menus!$B$25*$G$24)*VLOOKUP($I$10,Tableau_APERR,3,FALSE)*Menus!$B$38*Menus!$B$40*Menus!$B$28*Menus!$B$31*Menus!$B$32*Menus!$B$33*Menus!$B$34),2)))))","v":0},{"$f":"IF(AND(EXACT(UPPER($H$16),UPPER(Menus!$A$2)),ISNUMBER($H$17)=FALSE,OR(EXACT(UPPER($G$4),UPPER(Menus!$A$44)),EXACT(UPPER($G$4),UPPER(Menus!$A$45)))),\"Voir H17\",IF(IF(OR(EXACT(UPPER($G$4),UPPER(Menus!$A$44)),EXACT(UPPER($G$4),UPPER(Menus!$A$45))),IF((Menus!$B$23+Menus!$B$24*$H$23+Menus!$B$25*$H$24)<0,0,IF(ROUND(((Menus!$B$23+Menus!$B$24*$H$23+Menus!$B$25*$H$24)*VLOOKUP($I$10,Tableau_APERR,3,FALSE)*Menus!$C$38*Menus!$C$40*Menus!$C$28*Menus!$C$31*Menus!$C$32*Menus!$C$33*Menus!$C$34),2)>VLOOKUP($I$10,Tableau_APERR,4,FALSE),ROUND(VLOOKUP($I$10,Tableau_APERR,4,FALSE),2),ROUND(((Menus!$B$23+Menus!$B$24*$H$23+Menus!$B$25*$H$24)*VLOOKUP($I$10,Tableau_APERR,3,FALSE)*Menus!$C$38*Menus!$C$40*Menus!$C$28*Menus!$C$31*Menus!$C$32*Menus!$C$33*Menus!$C$34),2))),0)<0,0,IF(OR(EXACT(UPPER($G$4),UPPER(Menus!$A$44)),EXACT(UPPER($G$4),UPPER(Menus!$A$45))),IF((Menus!$B$23+Menus!$B$24*$H$23+Menus!$B$25*$H$24)<0,0,IF(ROUND(((Menus!$B$23+Menus!$B$24*$H$23+Menus!$B$25*$H$24)*VLOOKUP($I$10,Tableau_APERR,3,FALSE)*Menus!$C$38*Menus!$C$40*Menus!$C$28*Menus!$C$31*Menus!$C$32*Menus!$C$33*Menus!$C$34),2)>VLOOKUP($I$10,Tableau_APERR,4,FALSE),ROUND(VLOOKUP($I$10,Tableau_APERR,4,FALSE),2),ROUND(((Menus!$B$23+Menus!$B$24*$H$23+Menus!$B$25*$H$24)*VLOOKUP($I$10,Tableau_APERR,3,FALSE)*Menus!$C$38*Menus!$C$40*Menus!$C$28*Menus!$C$31*Menus!$C$32*Menus!$C$33*Menus!$C$34),2))),0)))","v":0},{"$f":"IF(AND(EXACT(UPPER($I$16),UPPER(Menus!$A$2)),ISNUMBER($I$17)=FALSE,EXACT(UPPER($G$4),UPPER(Menus!$A$45))),\"Voir I17\",IF(IF(EXACT(UPPER($G$4),UPPER(Menus!$A$45)),IF((Menus!$B$23+Menus!$B$24*$I$23+Menus!$B$25*$I$24)<0,0,IF(ROUND(((Menus!$B$23+Menus!$B$24*$I$23+Menus!$B$25*$I$24)*VLOOKUP($I$10,Tableau_APERR,3,FALSE)*Menus!$D$38*Menus!$D$40*Menus!$D$28*Menus!$D$31*Menus!$D$32*Menus!$D$33*Menus!$D$34),2)>VLOOKUP($I$10,Tableau_APERR,4,FALSE),ROUND(VLOOKUP($I$10,Tableau_APERR,4,FALSE),2),ROUND(((Menus!$B$23+Menus!$B$24*$I$23+Menus!$B$25*$I$24)*VLOOKUP($I$10,Tableau_APERR,3,FALSE)*Menus!$D$38*Menus!$D$40*Menus!$D$28*Menus!$D$31*Menus!$D$32*Menus!$D$33*Menus!$D$34),2))),0)<0,0,IF(EXACT(UPPER($G$4),UPPER(Menus!$A$45)),IF((Menus!$B$23+Menus!$B$24*$I$23+Menus!$B$25*$I$24)<0,0,IF(ROUND(((Menus!$B$23+Menus!$B$24*$I$23+Menus!$B$25*$I$24)*VLOOKUP($I$10,Tableau_APERR,3,FALSE)*Menus!$D$38*Menus!$D$40*Menus!$D$28*Menus!$D$31*Menus!$D$32*Menus!$D$33*Menus!$D$34),2)>VLOOKUP($I$10,Tableau_APERR,4,FALSE),ROUND(VLOOKUP($I$10,Tableau_APERR,4,FALSE),2),ROUND(((Menus!$B$23+Menus!$B$24*$I$23+Menus!$B$25*$I$24)*VLOOKUP($I$10,Tableau_APERR,3,FALSE)*Menus!$D$38*Menus!$D$40*Menus!$D$28*Menus!$D$31*Menus!$D$32*Menus!$D$33*Menus!$D$34),2))),0)))","v":0},null,null,null,null,null,null,null,null,null,null,null,null,null,null,null,null,null,null,null,null,null,null,null,null,null,null,null,null,null,null,null,null,null,null,null,null,null,null,null,null,null,null,null,null,null,null,null,null,null,null,null,null,null,null,null,null,null,null,null,null,null,null,null,null,null,null,null,null,null,null,null,null,null,null,null,null,null,null,null,null,null,null,null,null,null,null,null,null,"07151",258,280]
["Aide finale ($/ha) - taux à inscrire à l'état d'avancement et au RATF",null,null,null,null,null,{"$f":"IF(AND(EXACT(UPPER($G$16),UPPER(Menus!$A$2)),ISNUMBER($G$17)=FALSE),\"Voir G17\",IF(IF((Menus!$B$23+Menus!$B$24*$G$23+Menus!$B$25*$G$24)<0,0,IF(ROUND(((Menus!$B$23+Menus!$B$24*$G$23+Menus!$B$25*$G$24)*VLOOKUP($I$10,Tableau_APERR,3,FALSE)*Menus!$B$38*Menus!$B$40*Menus!$B$28*Menus!$B$31*Menus!$B$32*Menus!$B$33*Menus!$B$34),2)>VLOOKUP($I$10,Tableau_APERR,4,FALSE),ROUND(VLOOKUP($I$10,Tableau_APERR,4,FALSE)-SUM($G$17),2),ROUND(((Menus!$B$23+Menus!$B$24*$G$23+Menus!$B$25*$G$24)*VLOOKUP($I$10,Tableau_APERR,3,FALSE)*Menus!$B$38*Menus!$B$40*Menus!$B$28*Menus!$B$31*Menus!$B$32*Menus!$B$33*Menus!$B$34)-SUM($G$17),2)))<0,0,IF((Menus!$B$23+Menus!$B$24*$G$23+Menus!$B$25*$G$24)<0,0,IF(ROUND(((Menus!$B$23+Menus!$B$24*$G$23+Menus!$B$25*$G$24)*VLOOKUP($I$10,Tableau_APERR,3,FALSE)*Menus!$B$38*Menus!$B$40*Menus!$B$28*Menus!$B$31*Menus!$B$32*Menus!$B$33*Menus!$B$34),2)>VLOOKUP($I$10,Tableau_APERR,4,FALSE),ROUND(VLOOKUP($I$10,Tableau_APERR,4,FALSE)-SUM($G$17),2),ROUND(((Menus!$B$23+Menus!$B$24*$G$23+Menus!$B$25*$G$24)*VLOOKUP($I$10,Tableau_APERR,3,FALSE)*Menus!$B$38*Menus!$B$40*Menus!$B$28*Menus!$B$31*Menus!$B$32*Menus!$B$33*Menus!$B$34)-SUM($G$17),2)))))","v":0},{"$f":"IF(AND(EXACT(UPPER($H$16),UPPER(Menus!$A$2)),ISNUMBER($H$17)=FALSE,OR(EXACT(UPPER($G$4),UPPER(Menus!$A$44)),EXACT(UPPER($G$4),UPPER(Menus!$A$45)))),\"Voir H17\",IF(IF(OR(EXACT(UPPER($G$4),UPPER(Menus!$A$44)),EXACT(UPPER($G$4),UPPER(Menus!$A$45))),IF((Menus!$B$23+Menus!$B$24*$H$23+Menus!$B$25*$H$24)<0,0,IF(ROUND(((Menus!$B$23+Menus!$B$24*$H$23+Menus!$B$25*$H$24)*VLOOKUP($I$10,Tableau_APERR,3,FALSE)*Menus!$C$38*Menus!$C$40*Menus!$C$28*Menus!$C$31*Menus!$C$32*Menus!$C$33*Menus!$C$34),2)>VLOOKUP($I$10,Tableau_APERR,4,FALSE),ROUND(VLOOKUP($I$10,Tableau_APERR,4,FALSE)-SUM($H$17),2),ROUND(((Menus!$B$23+Menus!$B$24*$H$23+Menus!$B$25*$H$24)*VLOOKUP($I$10,Tableau_APERR,3,FALSE)*Menus!$C$38*Menus!$C$40*Menus!$C$28*Menus!$C$31*Menus!$C$32*Menus!$C$33*Menus!$C$34)-SUM($H$17),2))),0)<0,0,IF(OR(EXACT(UPPER($G$4),UPPER(Menus!$A$44)),EXACT(UPPER($G$4),UPPER(Menus!$A$45))),IF((Menus!$B$23+Menus!$B$24*$H$23+Menus!$B$25*$H$24)<0,0,IF(ROUND(((Menus!$B$23+Menus!$B$24*$H$23+Menus!$B$25*$H$24)*VLOOKUP($I$10,Tableau_APERR,3,FALSE)*Menus!$C$38*Menus!$C$40*Menus!$C$28*Menus!$C$31*Menus!$C$32*Menus!$C$33*Menus!$C$34),2)>VLOOKUP($I$10,Tableau_APERR,4,FALSE),ROUND(VLOOKUP($I$10,Tableau_APERR,4,FALSE)-SUM($H$17),2),ROUND(((Menus!$B$23+Menus!$B$24*$H$23+Menus!$B$25*$H$24)*VLOOKUP($I$10,Tableau_APERR,3,FALSE)*Menus!$C$38*Menus!$C$40*Menus!$C$28*Menus!$C$31*Menus!$C$32*Menus!$C$33*Menus!$C$34)-SUM($H$17),2))),0)))","v":0},{"$f":"IF(AND(EXACT(UPPER($I$16),UPPER(Menus!$A$2)),ISNUMBER($I$17)=FALSE,EXACT(UPPER($G$4),UPPER(Menus!$A$45))),\"Voir I17\",IF(IF(EXACT(UPPER($G$4),UPPER(Menus!$A$45)),IF((Menus!$B$23+Menus!$B$24*$I$23+Menus!$B$25*$I$24)<0,0,IF(ROUND(((Menus!$B$23+Menus!$B$24*$I$23+Menus!$B$25*$I$24)*VLOOKUP($I$10,Tableau_APERR,3,FALSE)*Menus!$D$38*Menus!$D$40*Menus!$D$28*Menus!$D$31*Menus!$D$32*Menus!$D$33*Menus!$D$34),2)>VLOOKUP($I$10,Tableau_APERR,4,FALSE),ROUND(VLOOKUP($I$10,Tableau_APERR,4,FALSE)-SUM($I$17),2),ROUND(((Menus!$B$23+Menus!$B$24*$I$23+Menus!$B$25*$I$24)*VLOOKUP($I$10,Tableau_APERR,3,FALSE)*Menus!$D$38*Menus!$D$40*Menus!$D$28*Menus!$D$31*Menus!$D$32*Menus!$D$33*Menus!$D$34)-SUM($I$17),2))),0)<0,0,IF(EXACT(UPPER($G$4),UPPER(Menus!$A$45)),IF((Menus!$B$23+Menus!$B$24*$I$23+Menus!$B$25*$I$24)<0,0,IF(ROUND(((Menus!$B$23+Menus!$B$24*$I$23+Menus!$B$25*$I$24)*VLOOKUP($I$10,Tableau_APERR,3,FALSE)*Menus!$D$38*Menus!$D$40*Menus!$D$28*Menus!$D$31*Menus!$D$32*Menus!$D$33*Menus!$D$34),2)>VLOOKUP($I$10,Tableau_APERR,4,FALSE),ROUND(VLOOKUP($I$10,Tableau_APERR,4,FALSE)-SUM($I$17),2),ROUND(((Menus!$B$23+Menus!$B$24*$I$23+Menus!$B$25*$I$24)*VLOOKUP($I$10,Tableau_APERR,3,FALSE)*Menus!$D$38*Menus!$D$40*Menus!$D$28*Menus!$D$31*Menus!$D$32*Menus!$D$33*Menus!$D$34)-SUM($I$17),2))),0)))","v":0},null,null,null,null,null,null,null,null,null,null,null,null,null,null,null,null,null,null,null,null,null,null,null,null,null,null,null,null,null,null,null,null,null,null,null,null,null,null,null,null,null,null,null,null,null,null,null,null,null,null,null,null,null,null,null,null,null,null,null,null,null,null,null,null,null,null,null,null,null,null,null,null,null,null,null,null,null,null,null,null,null,null,null,null,null,null,null,null,"07152",259,280]
["Aide finale ($)",null,null,null,null,null,{"$f":"IFERROR(ROUND($G$30*$G$27,2),0)","v":0},{"$f":"IFERROR(ROUND($H$30*$H$27,2),0)","v":0},{"$f":"IFERROR(ROUND($I$30*$I$27,2),0)","v":0},null,null,null,null,null,null,null,null,null,null,null,null,null,null,null,null,null,null,null,null,null,null,null,null,null,null,null,null,null,null,null,null,null,null,null,null,null,null,null,null,null,null,null,null,null,null,null,null,null,null,null,null,null,null,null,null,null,null,null,null,null,null,null,null,null,null,null,null,null,null,null,null,null,null,null,null,null,null,null,null,null,null,null,null,null,null,null,null,"07251",260,280]
[null,null,null,null,null,null,null,null,null,null,null,null,null,null,null,null,null,null,null,null,null,null,null,null,null,null,null,null,null,null,null,null,null,null,null,null,null,null,null,null,null,null,null,null,null,null,null,null,null,null,null,null,null,null,null,null,null,null,null,null,null,null,null,null,null,null,null,null,null,null,null,null,null,null,null,null,null,null,null,null,null,null,null,null,null,null,null,null,null,null,null,null,null,null,null,null,null,"07351",261,280]
["Section réservée à l'usage de la Planification",null,null,null,null,null,null,null,null,null,null,null,null,null,null,null,null,null,null,null,null,null,null,null,null,null,null,null,null,null,null,null,null,null,null,null,null,null,null,null,null,null,null,null,null,null,null,null,null,null,null,null,null,null,null,null,null,null,null,null,null,null,null,null,null,null,null,null,null,null,null,null,null,null,null,null,null,null,null,null,null,null,null,null,null,null,null,null,null,null,null,null,null,null,null,null,null,null,455,0]
["Remarques",null,null,null,null,null,null,null,null,null,null,null,null,null,null,null,null,null,null,null,null,null,null,null,null,null,null,null,null,null,null,null,null,null,null,null,null,null,null,null,null,null,null,null,null,null,null,null,null,null,null,null,null,null,null,null,null,null,null,null,null,null,null,null,null,null,null,null,null,null,null,null,null,null,null,null,null,null,null,null,null,null,null,null,null,null,null,null,null,null,null,null,null,null,null,null,null,null,456,0]
[null,null,null,null,null,null,null,null,null,null,null,null,null,null,null,null,null,null,null,null,null,null,null,null,null,null,null,null,null,null,null,null,null,null,null,null,null,null,null,null,null,null,null,null,null,null,null,null,null,null,null,null,null,null,null,null,null,null,null,null,null,null,null,null,null,null,null,null,null,null,null,null,null,null,null,null,null,null,null,null,null,null,null,null,null,null,null,null,null,null,null,null,null,null,null,null,null,null,457,0]
["J'atteste que les renseignements fournis dans ce document afin de calculer l'aide supplémentaire sont complets et conformes à la vérité, au meilleur de mes connaissances.",null,null,null,null,null,null,null,null,null,null,null,null,null,null,null,null,null,null,null,null,null,null,null,null,null,null,null,null,null,null,null,null,null,null,null,null,null,null,null,null,null,null,null,null,null,null,null,null,null,null,null,null,null,null,null,null,null,null,null,null,null,null,null,null,null,null,null,null,null,null,null,null,null,null,null,null,null,null,null,null,null,null,null,null,null,null,null,null,null,null,null,null,null,null,null,null,null,458,60]
[null,null,null,null,null,null,null,null,null,null,null,null,null,null,null,null,null,null,null,null,null,null,null,null,null,null,null,null,null,null,null,null,null,null,null,null,null,null,null,null,null,null,null,null,null,null,null,null,null,null,null,null,null,null,null,null,null,null,null,null,null,null,null,null,null,null,null,null,null,null,null,null,null,null,null,null,null,null,null,null,null,null,null,null,null,null,null,null,null,null,null,null,null,null,null,null,null,null,459,60]
[null,null,null,null,null,null,null,null,null,null,null,null,null,null,null,null,null,null,null,null,null,null,null,null,null,null,null,null,null,null,null,null,null,null,null,null,null,null,null,null,null,null,null,null,null,null,null,null,null,null,null,null,null,null,null,null,null,null,null,null,null,null,null,null,null,null,null,null,null,null,null,null,null,null,null,null,null,null,null,null,null,null,null,null,null,null,null,null,null,null,null,null,null,null,null,null,null,null,460,200]
[null,null,null,null,null,null,null,null,null,null,null,null,null,null,null,null,null,null,null,null,null,null,null,null,null,null,null,null,null,null,null,null,null,null,null,null,null,null,null,null,null,null,null,null,null,null,null,null,null,null,null,null,null,null,null,null,null,null,null,null,null,null,null,null,null,null,null,null,null,null,null,null,null,null,null,null,null,null,null,null,null,null,null,null,null,null,null,null,null,null,null,null,null,null,null,null,null,null,461,240]
["Nom et prénom de l'ingénieur forestier",null,null,null,null,null,"No de permis",null,null,null,null,null,null,null,null,null,null,null,null,null,null,null,null,null,null,null,null,null,null,null,null,null,null,null,null,null,null,null,null,null,null,null,null,null,null,null,null,null,null,null,null,null,null,null,null,null,null,null,null,null,null,null,null,null,null,null,null,null,null,null,null,null,null,null,null,null,null,null,null,null,null,null,null,null,null,null,null,null,null,null,null,null,null,null,null,null,null,null,551,0]
[null,null,null,null,null,null,{"$f":"TODAY()","v":"2020-07-20"},null,null,null,null,null,null,null,null,null,null,null,null,null,null,null,null,null,null,null,null,null,null,null,null,null,null,null,null,null,null,null,null,null,null,null,null,null,null,null,null,null,null,null,null,null,null,null,null,null,null,null,null,null,null,null,null,null,null,null,null,null,null,null,null,null,null,null,null,null,null,null,null,null,null,null,null,null,null,null,null,null,null,null,null,null,null,null,null,null,null,null,650,0]
[null,null,null,null,null,null,null,null,null,null,null,null,null,null,null,null,null,null,null,null,null,null,null,null,null,null,null,null,null,null,null,null,null,null,null,null,null,null,null,null,null,null,null,null,null,null,null,null,null,null,null,null,null,null,null,null,null,null,null,null,null,null,null,null,null,null,null,null,null,null,null,null,null,null,null,null,null,null,null,null,null,null,null,null,null,null,null,null,null,null,null,null,null,null,null,null,null,null,651,40]
["Signature de l'ingénieur forestier",null,null,null,null,null,"Date (AAAA-MM-JJ)",null,null,null,null,null,null,null,null,null,null,null,null,null,null,null,null,null,null,null,null,null,null,null,null,null,null,null,null,null,null,null,null,null,null,null,null,null,null,null,null,null,null,null,null,null,null,null,null,null,null,null,null,null,null,null,null,null,null,null,null,null,null,null,null,null,null,null,null,null,null,null,null,null,null,null,null,null,null,null,null,null,null,null,null,null,null,null,null,null,null,null,652,200]
["Section réservée à l'usage du BGAD",null,null,null,null,null,null,null,null,null,null,null,null,null,null,null,null,null,null,null,null,null,null,null,null,null,null,null,null,null,null,null,null,null,null,null,null,null,null,null,null,null,null,null,null,null,null,null,null,null,null,null,null,null,null,null,null,null,null,null,null,null,null,null,null,null,null,null,null,null,null,null,null,null,null,null,null,null,null,null,null,null,null,null,null,null,null,null,null,null,null,null,null,null,null,null,null,null,653,140]
["Remarques",null,null,null,null,null,null,null,null,null,null,null,null,null,null,null,null,null,null,null,null,null,null,null,null,null,null,null,null,null,null,null,null,null,null,null,null,null,null,null,null,null,null,null,null,null,null,null,null,null,null,null,null,null,null,null,null,null,null,null,null,null,null,null,null,null,null,null,null,null,null,null,null,null,null,null,null,null,null,null,null,null,null,null,null,null,null,null,null,null,null,null,null,null,null,null,null,null,654,200]
[null,null,null,null,null,null,null,null,null,null,null,null,null,null,null,null,null,null,null,null,null,null,null,null,null,null,null,null,null,null,null,null,null,null,null,null,null,null,null,null,null,null,null,null,null,null,null,null,null,null,null,null,null,null,null,null,null,null,null,null,null,null,null,null,null,null,null,null,null,null,null,null,null,null,null,null,null,null,null,null,null,null,null,null,null,null,null,null,null,null,null,null,null,null,null,null,null,null,655,40]
["J'atteste que les renseignements fournis dans ce document afin de calculer l'aide supplémentaire sont complets et conformes à la vérité, au meilleur de mes connaissances.",null,null,null,null,null,null,null,null,null,null,null,null,null,null,null,null,null,null,null,null,null,null,null,null,null,null,null,null,null,null,null,null,null,null,null,null,null,null,null,null,null,null,null,null,null,null,null,null,null,null,null,null,null,null,null,null,null,null,null,null,null,null,null,null,null,null,null,null,null,null,null,null,null,null,null,null,null,null,null,null,null,null,null,null,null,null,null,null,null,null,null,null,null,null,null,null,null,656,140]
[null,null,null,null,null,null,null,null,null,null,null,null,null,null,null,null,null,null,null,null,null,null,null,null,null,null,null,null,null,null,null,null,null,null,null,null,null,null,null,null,null,null,null,null,null,null,null,null,null,null,null,null,null,null,null,null,null,null,null,null,null,null,null,null,null,null,null,null,null,null,null,null,null,null,null,null,null,null,null,null,null,null,null,null,null,null,null,null,null,null,null,null,null,null,null,null,null,null,657,140]
[null,null,null,null,null,null,null,null,null,null,null,null,null,null,null,null,null,null,null,null,null,null,null,null,null,null,null,null,null,null,null,null,null,null,null,null,null,null,null,null,null,null,null,null,null,null,null,null,null,null,null,null,null,null,null,null,null,null,null,null,null,null,null,null,null,null,null,null,null,null,null,null,null,null,null,null,null,null,null,null,null,null,null,null,null,null,null,null,null,null,null,null,null,null,null,null,null,null,658,220]
[null,null,null,null,null,null,null,null,null,null,null,null,null,null,null,null,null,null,null,null,null,null,null,null,null,null,null,null,null,null,null,null,null,null,null,null,null,null,null,null,null,null,null,null,null,null,null,null,null,null,null,null,null,null,null,null,null,null,null,null,null,null,null,null,null,null,null,null,null,null,null,null,null,null,null,null,null,null,null,null,null,null,null,null,null,null,null,null,null,null,null,null,null,null,null,null,null,null,659,280]
["Nom et prénom de l'ingénieur forestier",null,null,null,null,null,"No de permis",null,null,null,null,null,null,null,null,null,null,null,null,null,null,null,null,null,null,null,null,null,null,null,null,null,null,null,null,null,null,null,null,null,null,null,null,null,null,null,null,null,null,null,null,null,null,null,null,null,null,null,null,null,null,null,null,null,null,null,null,null,null,null,null,null,null,null,null,null,null,null,null,null,null,null,null,null,null,null,null,null,null,null,null,null,null,null,null,null,null,null,660,160]
[null,null,null,null,null,null,{"$f":"TODAY()","v":"2020-07-20"},null,null,null,null,null,null,null,null,null,null,null,null,null,null,null,null,null,null,null,null,null,null,null,null,null,null,null,null,null,null,null,null,null,null,null,null,null,null,null,null,null,null,null,null,null,null,null,null,null,null,null,null,null,null,null,null,null,null,null,null,null,null,null,null,null,null,null,null,null,null,null,null,null,null,null,null,null,null,null,null,null,null,null,null,null,null,null,null,null,null,null,661,40]
[null,null,null,null,null,null,null,null,null,null,null,null,null,null,null,null,null,null,null,null,null,null,null,null,null,null,null,null,null,null,null,null,null,null,null,null,null,null,null,null,null,null,null,null,null,null,null,null,null,null,null,null,null,null,null,null,null,null,null,null,null,null,null,null,null,null,null,null,null,null,null,null,null,null,null,null,null,null,null,null,null,null,null,null,null,null,null,null,null,null,null,null,null,null,null,null,null,null,662,0]
["Signature de l'ingénieur forestier",null,null,null,null,null,"Date (AAAA-MM-JJ)",null,null,null,null,null,null,null,null,null,null,null,null,null,null,null,null,null,null,null,null,null,null,null,null,null,null,null,null,null,null,null,null,null,null,null,null,null,null,null,null,null,null,null,null,null,null,null,null,null,null,null,null,null,null,null,null,null,null,null,null,null,null,null,null,null,null,null,null,null,null,null,null,null,null,null,null,null,null,null,null,null,null,null,null,null,null,null,null,null,null,null,750,0]
["Section réservée à l'usage du Ministère",null,null,null,null,null,null,null,null,null,null,null,null,null,null,null,null,null,null,null,null,null,null,null,null,null,null,null,null,null,null,null,null,null,null,null,null,null,null,null,null,null,null,null,null,null,null,null,null,null,null,null,null,null,null,null,null,null,null,null,null,null,null,null,null,null,null,null,null,null,null,null,null,null,null,null,null,null,null,null,null,null,null,null,null,null,null,null,null,null,null,null,null,null,null,null,null,null,751,40]
["Remarques",null,null,null,null,null,null,null,null,null,null,null,null,null,null,null,null,null,null,null,null,null,null,null,null,null,null,null,null,null,null,null,null,null,null,null,null,null,null,null,null,null,null,null,null,null,null,null,null,null,null,null,null,null,null,null,null,null,null,null,null,null,null,null,null,null,null,null,null,null,null,null,null,null,null,null,null,null,null,null,null,null,null,null,null,null,null,null,null,null,null,null,null,null,null,null,null,null,752,220]
[null,null,null,null,null,null,null,null,null,null,null,null,null,null,null,null,null,null,null,null,null,null,null,null,null,null,null,null,null,null,null,null,null,null,null,null,null,null,null,null,null,null,null,null,null,null,null,null,null,null,null,null,null,null,null,null,null,null,null,null,null,null,null,null,null,null,null,null,null,null,null,null,null,null,null,null,null,null,null,null,null,null,null,null,null,null,null,null,null,null,null,null,null,null,null,null,null,null,753,280]
["J'atteste que les renseignements fournis dans ce document afin de calculer l'aide supplémentaire sont complets et conformes à la vérité, au meilleur de mes connaissances.",null,null,null,null,null,null,null,null,null,null,null,null,null,null,null,null,null,null,null,null,null,null,null,null,null,null,null,null,null,null,null,null,null,null,null,null,null,null,null,null,null,null,null,null,null,null,null,null,null,null,null,null,null,null,null,null,null,null,null,null,null,null,null,null,null,null,null,null,null,null,null,null,null,null,null,null,null,null,null,null,null,null,null,null,null,null,null,null,null,null,null,null,null,null,null,null,null,754,80]
[null,null,null,null,null,null,null,null,null,null,null,null,null,null,null,null,null,null,null,null,null,null,null,null,null,null,null,null,null,null,null,null,null,null,null,null,null,null,null,null,null,null,null,null,null,null,null,null,null,null,null,null,null,null,null,null,null,null,null,null,null,null,null,null,null,null,null,null,null,null,null,null,null,null,null,null,null,null,null,null,null,null,null,null,null,null,null,null,null,null,null,null,null,null,null,null,null,null,755,60]
[null,null,null,null,null,null,null,null,null,null,null,null,null,null,null,null,null,null,null,null,null,null,null,null,null,null,null,null,null,null,null,null,null,null,null,null,null,null,null,null,null,null,null,null,null,null,null,null,null,null,null,null,null,null,null,null,null,null,null,null,null,null,null,null,null,null,null,null,null,null,null,null,null,null,null,null,null,null,null,null,null,null,null,null,null,null,null,null,null,null,null,null,null,null,null,null,null,null,756,260]
[null,null,null,null,null,null,null,null,null,null,null,null,null,null,null,null,null,null,null,null,null,null,null,null,null,null,null,null,null,null,null,null,null,null,null,null,null,null,null,null,null,null,null,null,null,null,null,null,null,null,null,null,null,null,null,null,null,null,null,null,null,null,null,null,null,null,null,null,null,null,null,null,null,null,null,null,null,null,null,null,null,null,null,null,null,null,null,null,null,null,null,null,null,null,null,null,null,null,757,260]
["Nom et prénom de l'ingénieur forestier",null,null,null,null,null,"No de permis",null,null,null,null,null,null,null,null,null,null,null,null,null,null,null,null,null,null,null,null,null,null,null,null,null,null,null,null,null,null,null,null,null,null,null,null,null,null,null,null,null,null,null,null,null,null,null,null,null,null,null,null,null,null,null,null,null,null,null,null,null,null,null,null,null,null,null,null,null,null,null,null,null,null,null,null,null,null,null,null,null,null,null,null,null,null,null,null,null,null,null,758,280]
[null,null,null,null,null,null,{"$f":"TODAY()","v":"2020-07-20"},null,null,null,null,null,null,null,null,null,null,null,null,null,null,null,null,null,null,null,null,null,null,null,null,null,null,null,null,null,null,null,null,null,null,null,null,null,null,null,null,null,null,null,null,null,null,null,null,null,null,null,null,null,null,null,null,null,null,null,null,null,null,null,null,null,null,null,null,null,null,null,null,null,null,null,null,null,null,null,null,null,null,null,null,null,null,null,null,null,null,null,850,0]
[null,null,null,null,null,null,null,null,null,null,null,null,null,null,null,null,null,null,null,null,null,null,null,null,null,null,null,null,null,null,null,null,null,null,null,null,null,null,null,null,null,null,null,null,null,null,null,null,null,null,null,null,null,null,null,null,null,null,null,null,null,null,null,null,null,null,null,null,null,null,null,null,null,null,null,null,null,null,null,null,null,null,null,null,null,null,null,null,null,null,null,null,null,null,null,null,null,null,851,0]
["Signature de l'ingénieur forestier",null,null,null,null,null,"Date (AAAA-MM-JJ)",null,null,null,null,null,null,null,null,null,null,null,null,null,null,null,null,null,null,null,null,null,null,null,null,null,null,null,null,null,null,null,null,null,null,null,null,null,null,null,null,null,null,null,null,null,null,null,null,null,null,null,null,null,null,null,null,null,null,null,null,null,null,null,null,null,null,null,null,null,null,null,null,null,null,null,null,null,null,null,null,null,null,null,null,null,null,null,null,null,null,null,852,0]
[null,null,null,null,null,null,null,null,null,null,null,null,null,null,null,null,null,null,null,null,null,null,null,null,null,null,null,null,null,null,null,null,null,null,null,null,null,null,null,null,null,null,null,null,null,null,null,null,null,null,null,null,null,null,null,null,null,null,null,null,null,null,null,null,null,null,null,null,null,null,null,null,null,null,null,null,null,null,null,null,null,null,null,null,null,null,null,null,null,null,null,null,null,null,null,null,null,null,853,0]
[null,null,null,null,null,null,null,null,null,null,null,null,null,null,null,null,null,null,null,null,null,null,null,null,null,null,null,null,null,null,null,null,null,null,null,null,null,null,null,null,null,null,null,null,null,null,null,null,null,null,null,null,null,null,null,null,null,null,null,null,null,null,null,null,null,null,null,null,null,null,null,null,null,null,null,null,null,null,null,null,null,null,null,null,null,null,null,null,null,null,null,null,null,null,null,null,null,null,854,0]
[null,null,null,null,null,null,null,null,null,null,null,null,null,null,null,null,null,null,null,null,null,null,null,null,null,null,null,null,null,null,null,null,null,null,null,null,null,null,null,null,null,null,null,null,null,null,null,null,null,null,null,null,null,null,null,null,null,null,null,null,null,null,null,null,null,null,null,null,null,null,null,null,null,null,null,null,null,null,null,null,null,null,null,null,null,null,null,null,null,null,null,null,null,null,null,null,null,null,855,0]
[null,null,null,null,null,null,null,null,null,null,null,null,null,null,null,null,null,null,null,null,null,null,null,null,null,null,null,null,null,null,null,null,null,null,null,null,null,null,null,null,null,null,null,null,null,null,null,null,null,null,null,null,null,null,null,null,null,null,null,null,null,null,null,null,null,null,null,null,null,null,null,null,null,null,null,null,null,null,null,null,null,null,null,null,null,null,null,null,null,null,null,null,null,null,null,null,null,null,856,60]
[null,null,null,null,null,null,null,null,null,null,null,null,null,null,null,null,null,null,null,null,null,null,null,null,null,null,null,null,null,null,null,null,null,null,null,null,null,null,null,null,null,null,null,null,null,null,null,null,null,null,null,null,null,null,null,null,null,null,null,null,null,null,null,null,null,null,null,null,null,null,null,null,null,null,null,null,null,null,null,null,null,null,null,null,null,null,null,null,null,null,null,null,null,null,null,null,null,null,857,80]
[null,null,null,null,null,null,null,null,null,null,null,null,null,null,null,null,null,null,null,null,null,null,null,null,null,null,null,null,null,null,null,null,null,null,null,null,null,null,null,null,null,null,null,null,null,null,null,null,null,null,null,null,null,null,null,null,null,null,null,null,null,null,null,null,null,null,null,null,null,null,null,null,null,null,null,null,null,null,null,null,null,null,null,null,null,null,null,null,null,null,null,null,null,null,null,null,null,null,858,100]
[null,null,null,null,null,null,null,null,null,null,null,null,null,null,null,null,null,null,null,null,null,null,null,null,null,null,null,null,null,null,null,null,null,null,null,null,null,null,null,null,null,null,null,null,null,null,null,null,null,null,null,null,null,null,null,null,null,null,null,null,null,null,null,null,null,null,null,null,null,null,null,null,null,null,null,null,null,null,null,null,null,null,null,null,null,null,null,null,null,null,null,null,null,null,null,null,null,null,859,180]
[null,null,null,null,null,null,null,null,null,null,null,null,null,null,null,null,null,null,null,null,null,null,null,null,null,null,null,null,null,null,null,null,null,null,null,null,null,null,null,null,null,null,null,null,null,null,null,null,null,null,null,null,null,null,null,null,null,null,null,null,null,null,null,null,null,null,null,null,null,null,null,null,null,null,null,null,null,null,null,null,null,null,null,null,null,null,null,null,null,null,null,null,null,null,null,null,null,null,860,260]
[null,null,null,null,null,null,null,null,null,null,null,null,null,null,null,null,null,null,null,null,null,null,null,null,null,null,null,null,null,null,null,null,null,null,null,null,null,null,null,null,null,null,null,null,null,null,null,null,null,null,null,null,null,null,null,null,null,null,null,null,null,null,null,null,null,null,null,null,null,null,null,null,null,null,null,null,null,null,null,null,null,null,null,null,null,null,null,null,null,null,null,null,null,null,null,null,null,null,861,240]
[null,null,null,null,null,null,null,null,null,null,null,null,null,null,null,null,null,null,null,null,null,null,null,null,null,null,null,null,null,null,null,null,null,null,null,null,null,null,null,null,null,null,null,null,null,null,null,null,null,null,null,null,null,null,null,null,null,null,null,null,null,null,null,null,null,null,null,null,null,null,null,null,null,null,null,null,null,null,null,null,null,null,null,null,null,null,null,null,null,null,null,null,null,null,null,null,null,null,862,280]
[null,null,null,null,null,null,null,null,null,null,null,null,null,null,null,null,null,null,null,null,null,null,null,null,null,null,null,null,null,null,null,null,null,null,null,null,null,null,null,null,null,null,null,null,null,null,null,null,null,null,null,null,null,null,null,null,null,null,null,null,null,null,null,null,null,null,null,null,null,null,null,null,null,null,null,null,null,null,null,null,null,null,null,null,null,null,null,null,null,null,null,null,null,null,null,null,null,null,863,280]
[null,null,null,null,null,null,null,null,null,null,null,null,null,null,null,null,null,null,null,null,null,null,null,null,null,null,null,null,null,null,null,null,null,null,null,null,null,null,null,null,null,null,null,null,null,null,null,null,null,null,null,null,null,null,null,null,null,null,null,null,null,null,null,null,null,null,null,null,null,null,null,null,null,null,null,null,null,null,null,null,null,null,null,null,null,null,null,null,null,null,null,null,null,null,null,null,null,null,864,280]
[null,null,null,null,null,null,null,null,null,null,null,null,null,null,null,null,null,null,null,null,null,null,null,null,null,null,null,null,null,null,null,null,null,null,null,null,null,null,null,null,null,null,null,null,null,null,null,null,null,null,null,null,null,null,null,null,null,null,null,null,null,null,null,null,null,null,null,null,null,null,null,null,null,null,null,null,null,null,null,null,null,null,null,null,null,null,null,null,null,null,null,null,null,null,null,null,null,null,865,280]
[null,null,null,null,null,null,null,null,null,null,null,null,null,null,null,null,null,null,null,null,null,null,null,null,null,null,null,null,null,null,null,null,null,null,null,null,null,null,null,null,null,null,null,null,null,null,null,null,null,null,null,null,null,null,null,null,null,null,null,null,null,null,null,null,null,null,null,null,null,null,null,null,null,null,null,null,null,null,null,null,null,null,null,null,null,null,null,null,null,null,null,null,null,null,null,null,null,null,866,280]
[null,null,null,null,null,null,null,null,null,null,null,null,null,null,null,null,null,null,null,null,null,null,null,null,null,null,null,null,null,null,null,null,null,null,null,null,null,null,null,null,null,null,null,null,null,null,null,null,null,null,null,null,null,null,null,null,null,null,null,null,null,null,null,null,null,null,null,null,null,null,null,null,null,null,null,null,null,null,null,null,null,null,null,null,null,null,null,null,null,null,null,null,null,null,null,null,null,null,867,280]
[null,null,null,null,null,null,null,null,null,null,null,null,null,null,null,null,null,null,null,null,null,null,null,null,null,null,null,null,null,null,null,null,null,null,null,null,null,null,null,null,null,null,null,null,null,null,null,null,null,null,null,null,null,null,null,null,null,null,null,null,null,null,null,null,null,null,null,null,null,null,null,null,null,null,null,null,null,null,null,null,null,null,null,null,null,null,null,null,null,null,null,null,null,null,null,null,null,null,868,280]
[null,null,null,null,null,null,null,null,null,null,null,null,null,null,null,null,null,null,null,null,null,null,null,null,null,null,null,null,null,null,null,null,null,null,null,null,null,null,null,null,null,null,null,null,null,null,null,null,null,null,null,null,null,null,null,null,null,null,null,null,null,null,null,null,null,null,null,null,null,null,null,null,null,null,null,null,null,null,null,null,null,null,null,null,null,null,null,null,null,null,null,null,null,null,null,null,null,null,869,280]
[null,null,null,null,null,null,null,null,null,null,null,null,null,null,null,null,null,null,null,null,null,null,null,null,null,null,null,null,null,null,null,null,null,null,null,null,null,null,null,null,null,null,null,null,null,null,null,null,null,null,null,null,null,null,null,null,null,null,null,null,null,null,null,null,null,null,null,null,null,null,null,null,null,null,null,null,null,null,null,null,null,null,null,null,null,null,null,null,null,null,null,null,null,null,null,null,null,null,870,280]
[null,null,null,null,null,null,null,null,null,null,null,null,null,null,null,null,null,null,null,null,null,null,null,null,null,null,null,null,null,null,null,null,null,null,null,null,null,null,null,null,null,null,null,null,null,null,null,null,null,null,null,null,null,null,null,null,null,null,null,null,null,null,null,null,null,null,null,null,null,null,null,null,null,null,null,null,null,null,null,null,null,null,null,null,null,null,null,null,null,null,null,null,null,null,null,null,null,null,871,280]
[null,null,null,null,null,null,null,null,null,null,null,null,null,null,null,null,null,null,null,null,null,null,null,null,null,null,null,null,null,null,null,null,null,null,null,null,null,null,null,null,null,null,null,null,null,null,null,null,null,null,null,null,null,null,null,null,null,null,null,null,null,null,null,null,null,null,null,null,null,null,null,null,null,null,null,null,null,null,null,null,null,null,null,null,null,null,null,null,null,null,null,null,null,null,null,null,null,null,872,280]
[null,null,null,null,null,null,null,null,null,null,null,null,null,null,null,null,null,null,null,null,null,null,null,null,null,null,null,null,null,null,null,null,null,null,null,null,null,null,null,null,null,null,null,null,null,null,null,null,null,null,null,null,null,null,null,null,null,null,null,null,null,null,null,null,null,null,null,null,null,null,null,null,null,null,null,null,null,null,null,null,null,null,null,null,null,null,null,null,null,null,null,null,null,null,null,null,null,null,873,280]
[null,null,null,null,null,null,null,null,null,null,null,null,null,null,null,null,null,null,null,null,null,null,null,null,null,null,null,null,null,null,null,null,null,null,null,null,null,null,null,null,null,null,null,null,null,null,null,null,null,null,null,null,null,null,null,null,null,null,null,null,null,null,null,null,null,null,null,null,null,null,null,null,null,null,null,null,null,null,null,null,null,null,null,null,null,null,null,null,null,null,null,null,null,null,null,null,null,null,874,280]
[null,null,null,null,null,null,null,null,null,null,null,null,null,null,null,null,null,null,null,null,null,null,null,null,null,null,null,null,null,null,null,null,null,null,null,null,null,null,null,null,null,null,null,null,null,null,null,null,null,null,null,null,null,null,null,null,null,null,null,null,null,null,null,null,null,null,null,null,null,null,null,null,null,null,null,null,null,null,null,null,null,null,null,null,null,null,null,null,null,null,null,null,null,null,null,null,null,null,875,280]
[null,null,null,null,null,null,null,null,null,null,null,null,null,null,null,null,null,null,null,null,null,null,null,null,null,null,null,null,null,null,null,null,null,null,null,null,null,null,null,null,null,null,null,null,null,null,null,null,null,null,null,null,null,null,null,null,null,null,null,null,null,null,null,null,null,null,null,null,null,null,null,null,null,null,null,null,null,null,null,null,null,null,null,null,null,null,null,null,null,null,null,null,null,null,null,null,null,null,876,280]
[null,null,null,null,null,null,null,null,null,null,null,null,null,null,null,null,null,null,null,null,null,null,null,null,null,null,null,null,null,null,null,null,null,null,null,null,null,null,null,null,null,null,null,null,null,null,null,null,null,null,null,null,null,null,null,null,null,null,null,null,null,null,null,null,null,null,null,null,null,null,null,null,null,null,null,null,null,null,null,null,null,null,null,null,null,null,null,null,null,null,null,null,null,null,null,null,null,null,877,280]
[null,null,null,null,null,null,null,null,null,null,null,null,null,null,null,null,null,null,null,null,null,null,null,null,null,null,null,null,null,null,null,null,null,null,null,null,null,null,null,null,null,null,null,null,null,null,null,null,null,null,null,null,null,null,null,null,null,null,null,null,null,null,null,null,null,null,null,null,null,null,null,null,null,null,null,null,null,null,null,null,null,null,null,null,null,null,null,null,null,null,null,null,null,null,null,null,null,null,878,280]
[null,null,null,null,null,null,null,null,null,null,null,null,null,null,null,null,null,null,null,null,null,null,null,null,null,null,null,null,null,null,null,null,null,null,null,null,null,null,null,null,null,null,null,null,null,null,null,null,null,null,null,null,null,null,null,null,null,null,null,null,null,null,null,null,null,null,null,null,null,null,null,null,null,null,null,null,null,null,null,null,null,null,null,null,null,null,null,null,null,null,null,null,null,null,null,null,null,null,879,280]
[null,null,null,null,null,null,null,null,null,null,null,null,null,null,null,null,null,null,null,null,null,null,null,null,null,null,null,null,null,null,null,null,null,null,null,null,null,null,null,null,null,null,null,null,null,null,null,null,null,null,null,null,null,null,null,null,null,null,null,null,null,null,null,null,null,null,null,null,null,null,null,null,null,null,null,null,null,null,null,null,null,null,null,null,null,null,null,null,null,null,null,null,null,null,null,null,null,null,880,280]
[null,null,null,null,null,null,null,null,null,null,null,null,null,null,null,null,null,null,null,null,null,null,null,null,null,null,null,null,null,null,null,null,null,null,null,null,null,null,null,null,null,null,null,null,null,null,null,null,null,null,null,null,null,null,null,null,null,null,null,null,null,null,null,null,null,null,null,null,null,null,null,null,null,null,null,null,null,null,null,null,null,null,null,null,null,null,null,null,null,null,null,null,null,null,null,null,null,null,881,280]
[null,null,null,null,null,null,null,null,null,null,null,null,null,null,null,null,null,null,null,null,null,null,null,null,null,null,null,null,null,null,null,null,null,null,null,null,null,null,null,null,null,null,null,null,null,null,null,null,null,null,null,null,null,null,null,null,null,null,null,null,null,null,null,null,null,null,null,null,null,null,null,null,null,null,null,null,null,null,null,null,null,null,null,null,null,null,null,null,null,null,null,null,null,null,null,null,null,null,882,280]
[null,null,null,null,null,null,null,null,null,null,null,null,null,null,null,null,null,null,null,null,null,null,null,null,null,null,null,null,null,null,null,null,null,null,null,null,null,null,null,null,null,null,null,null,null,null,null,null,null,null,null,null,null,null,null,null,null,null,null,null,null,null,null,null,null,null,null,null,null,null,null,null,null,null,null,null,null,null,null,null,null,null,null,null,null,null,null,null,null,null,null,null,null,null,null,null,null,null,883,280]
[null,null,null,null,null,null,null,null,null,null,null,null,null,null,null,null,null,null,null,null,null,null,null,null,null,null,null,null,null,null,null,null,null,null,null,null,null,null,null,null,null,null,null,null,null,null,null,null,null,null,null,null,null,null,null,null,null,null,null,null,null,null,null,null,null,null,null,null,null,null,null,null,null,null,null,null,null,null,null,null,null,null,null,null,null,null,null,null,null,null,null,null,null,null,null,null,null,null,884,280]
[null,null,null,null,null,null,null,null,null,null,null,null,null,null,null,null,null,null,null,null,null,null,null,null,null,null,null,null,null,null,null,null,null,null,null,null,null,null,null,null,null,null,null,null,null,null,null,null,null,null,null,null,null,null,null,null,null,null,null,null,null,null,null,null,null,null,null,null,null,null,null,null,null,null,null,null,null,null,null,null,null,null,null,null,null,null,null,null,null,null,null,null,null,null,null,null,null,null,885,280]
[null,null,null,null,null,null,null,null,null,null,null,null,null,null,null,null,null,null,null,null,null,null,null,null,null,null,null,null,null,null,null,null,null,null,null,null,null,null,null,null,null,null,null,null,null,null,null,null,null,null,null,null,null,null,null,null,null,null,null,null,null,null,null,null,null,null,null,null,null,null,null,null,null,null,null,null,null,null,null,null,null,null,null,null,null,null,null,null,null,null,null,null,null,null,null,null,null,null,886,280]
[null,null,null,null,null,null,null,null,null,null,null,null,null,null,null,null,null,null,null,null,null,null,null,null,null,null,null,null,null,null,null,null,null,null,null,null,null,null,null,null,null,null,null,null,null,null,null,null,null,null,null,null,null,null,null,null,null,null,null,null,null,null,null,null,null,null,null,null,null,null,null,null,null,null,null,null,null,null,null,null,null,null,null,null,null,null,null,null,null,null,null,null,null,null,null,null,null,null,887,280]
[null,null,null,null,null,null,null,null,null,null,null,null,null,null,null,null,null,null,null,null,null,null,null,null,null,null,null,null,null,null,null,null,null,null,null,null,null,null,null,null,null,null,null,null,null,null,null,null,null,null,null,null,null,null,null,null,null,null,null,null,null,null,null,null,null,null,null,null,null,null,null,null,null,null,null,null,null,null,null,null,null,null,null,null,null,null,null,null,null,null,null,null,null,null,null,null,null,null,888,280]
[null,null,null,null,null,null,null,null,null,null,null,null,null,null,null,null,null,null,null,null,null,null,null,null,null,null,null,null,null,null,null,null,null,null,null,null,null,null,null,null,null,null,null,null,null,null,null,null,null,null,null,null,null,null,null,null,null,null,null,null,null,null,null,null,null,null,null,null,null,null,null,null,null,null,null,null,null,null,null,null,null,null,null,null,null,null,null,null,null,null,null,null,null,null,null,null,null,null,889,240]
[null,null,null,null,null,null,null,null,null,null,null,null,null,null,null,null,null,null,null,null,null,null,null,null,null,null,null,null,null,null,null,null,null,null,null,null,null,null,null,null,null,null,null,null,null,null,null,null,null,null,null,null,null,null,null,null,null,null,null,null,null,null,null,null,null,null,null,null,null,null,null,null,null,null,null,null,null,null,null,null,null,null,null,null,null,null,null,null,null,null,null,null,null,null,null,null,null,null,890,280]
[null,null,null,null,null,null,null,null,null,null,null,null,null,null,null,null,null,null,null,null,null,null,null,null,null,null,null,null,null,null,null,null,null,null,null,null,null,null,null,null,null,null,null,null,null,null,null,null,null,null,null,null,null,null,null,null,null,null,null,null,null,null,null,null,null,null,null,null,null,null,null,null,null,null,null,null,null,null,null,null,null,null,null,null,null,null,null,null,null,null,null,null,null,null,null,null,null,null,891,280]
[null,null,null,null,null,null,null,null,null,null,null,null,null,null,null,null,null,null,null,null,null,null,null,null,null,null,null,null,null,null,null,null,null,null,null,null,null,null,null,null,null,null,null,null,null,null,null,null,null,null,null,null,null,null,null,null,null,null,null,null,null,null,null,null,null,null,null,null,null,null,null,null,null,null,null,null,null,null,null,null,null,null,null,null,null,null,null,null,null,null,null,null,null,null,null,null,null,null,892,280]
[null,null,null,null,null,null,null,null,null,null,null,null,null,null,null,null,null,null,null,null,null,null,null,null,null,null,null,null,null,null,null,null,null,null,null,null,null,null,null,null,null,null,null,null,null,null,null,null,null,null,null,null,null,null,null,null,null,null,null,null,null,null,null,null,null,null,null,null,null,null,null,null,null,null,null,null,null,null,null,null,null,null,null,null,null,null,null,null,null,null,null,null,null,null,null,null,null,null,950,280]
[null,null,null,null,null,null,null,null,null,null,null,null,null,null,null,null,null,null,null,null,null,null,null,null,null,null,null,null,null,null,null,null,null,null,null,null,null,null,null,null,null,null,null,null,null,null,null,null,null,null,null,null,null,null,null,null,null,null,null,null,null,null,null,null,null,null,null,null,null,null,null,null,null,null,null,null,null,null,null,null,null,null,null,null,null,null,null,null,null,null,null,null,null,null,null,null,null,null,951,280]
[null,null,null,null,null,null,null,null,null,null,null,null,null,null,null,null,null,null,null,null,null,null,null,null,null,null,null,null,null,null,null,null,null,null,null,null,null,null,null,null,null,null,null,null,null,null,null,null,null,null,null,null,null,null,null,null,null,null,null,null,null,null,null,null,null,null,null,null,null,null,null,null,null,null,null,null,null,null,null,null,null,null,null,null,null,null,null,null,null,null,null,null,null,null,null,null,null,null,952,280]
[null,null,null,null,null,null,null,null,null,null,null,null,null,null,null,null,null,null,null,null,null,null,null,null,null,null,null,null,null,null,null,null,null,null,null,null,null,null,null,null,null,null,null,null,null,null,null,null,null,null,null,null,null,null,null,null,null,null,null,null,null,null,null,null,null,null,null,null,null,null,null,null,null,null,null,null,null,null,null,null,null,null,null,null,null,null,null,null,null,null,null,null,null,null,null,null,null,null,953,280]
[null,null,null,null,null,null,null,null,null,null,null,null,null,null,null,null,null,null,null,null,null,null,null,null,null,null,null,null,null,null,null,null,null,null,null,null,null,null,null,null,null,null,null,null,null,null,null,null,null,null,null,null,null,null,null,null,null,null,null,null,null,null,null,null,null,null,null,null,null,null,null,null,null,null,null,null,null,null,null,null,null,null,null,null,null,null,null,null,null,null,null,null,null,null,null,null,null,null,954,280]
[null,null,null,null,null,null,null,null,null,null,null,null,null,null,null,null,null,null,null,null,null,null,null,null,null,null,null,null,null,null,null,null,null,null,null,null,null,null,null,null,null,null,null,null,null,null,null,null,null,null,null,null,null,null,null,null,null,null,null,null,null,null,null,null,null,null,null,null,null,null,null,null,null,null,null,null,null,null,null,null,null,null,null,null,null,null,null,null,null,null,null,null,null,null,null,null,null,null,955,280]
[null,null,null,null,null,null,null,null,null,null,null,null,null,null,null,null,null,null,null,null,null,null,null,null,null,null,null,null,null,null,null,null,null,null,null,null,null,null,null,null,null,null,null,null,null,null,null,null,null,null,null,null,null,null,null,null,null,null,null,null,null,null,null,null,null,null,null,null,null,null,null,null,null,null,null,null,null,null,null,null,null,null,null,null,null,null,null,null,null,null,null,null,null,null,null,null,null,null,956,280]
[null,null,null,null,null,null,null,null,null,null,null,null,null,null,null,null,null,null,null,null,null,null,null,null,null,null,null,null,null,null,null,null,null,null,null,null,null,null,null,null,null,null,null,null,null,null,null,null,null,null,null,null,null,null,null,null,null,null,null,null,null,null,null,null,null,null,null,null,null,null,null,null,null,null,null,null,null,null,null,null,null,null,null,null,null,null,null,null,null,null,null,null,null,null,null,null,null,null,957,280]
[null,null,null,null,null,null,null,null,null,null,null,null,null,null,null,null,null,null,null,null,null,null,null,null,null,null,null,null,null,null,null,null,null,null,null,null,null,null,null,null,null,null,null,null,null,null,null,null,null,null,null,null,null,null,null,null,null,null,null,null,null,null,null,null,null,null,null,null,null,null,null,null,null,null,null,null,null,null,null,null,null,null,null,null,null,null,null,null,null,null,null,null,null,null,null,null,null,null,960,280]
[null,null,null,null,null,null,null,null,null,null,null,null,null,null,null,null,null,null,null,null,null,null,null,null,null,null,null,null,null,null,null,null,null,null,null,null,null,null,null,null,null,null,null,null,null,null,null,null,null,null,null,null,null,null,null,null,null,null,null,null,null,null,null,null,null,null,null,null,null,null,null,null,null,null,null,null,null,null,null,null,null,null,null,null,null,null,null,null,null,null,null,null,null,null,null,null,null,null,961,280]
[null,null,null,null,null,null,null,null,null,null,null,null,null,null,null,null,null,null,null,null,null,null,null,null,null,null,null,null,null,null,null,null,null,null,null,null,null,null,null,null,null,null,null,null,null,null,null,null,null,null,null,null,null,null,null,null,null,null,null,null,null,null,null,null,null,null,null,null,null,null,null,null,null,null,null,null,null,null,null,null,null,null,null,null,null,null,null,null,null,null,null,null,null,null,null,null,null,null,962,280]
[null,null,null,null,null,null,null,null,null,null,null,null,null,null,null,null,null,null,null,null,null,null,null,null,null,null,null,null,null,null,null,null,null,null,null,null,null,null,null,null,null,null,null,null,null,null,null,null,null,null,null,null,null,null,null,null,null,null,null,null,null,null,null,null,null,null,null,null,null,null,null,null,null,null,null,null,null,null,null,null,null,null,null,null,null,null,null,null,null,null,null,null,null,null,null,null,null,null,963,280]
[null,null,null,null,null,null,null,null,null,null,null,null,null,null,null,null,null,null,null,null,null,null,null,null,null,null,null,null,null,null,null,null,null,null,null,null,null,null,null,null,null,null,null,null,null,null,null,null,null,null,null,null,null,null,null,null,null,null,null,null,null,null,null,null,null,null,null,null,null,null,null,null,null,null,null,null,null,null,null,null,null,null,null,null,null,null,null,null,null,null,null,null,null,null,null,null,null,null,964,280]
[null,null,null,null,null,null,null,null,null,null,null,null,null,null,null,null,null,null,null,null,null,null,null,null,null,null,null,null,null,null,null,null,null,null,null,null,null,null,null,null,null,null,null,null,null,null,null,null,null,null,null,null,null,null,null,null,null,null,null,null,null,null,null,null,null,null,null,null,null,null,null,null,null,null,null,null,null,null,null,null,null,null,null,null,null,null,null,null,null,null,null,null,null,null,null,null,null,null,965,280]
[null,null,null,null,null,null,null,null,null,null,null,null,null,null,null,null,null,null,null,null,null,null,null,null,null,null,null,null,null,null,null,null,null,null,null,null,null,null,null,null,null,null,null,null,null,null,null,null,null,null,null,null,null,null,null,null,null,null,null,null,null,null,null,null,null,null,null,null,null,null,null,null,null,null,null,null,null,null,null,null,null,null,null,null,null,null,null,null,null,null,null,null,null,null,null,null,null,null,966,280]
[null,null,null,null,null,null,null,null,null,null,null,null,null,null,null,null,null,null,null,null,null,null,null,null,null,null,null,null,null,null,null,null,null,null,null,null,null,null,null,null,null,null,null,null,null,null,null,null,null,null,null,null,null,null,null,null,null,null,null,null,null,null,null,null,null,null,null,null,null,null,null,null,null,null,null,null,null,null,null,null,null,null,null,null,null,null,null,null,null,null,null,null,null,null,null,null,null,null,967,280]
[null,null,null,null,null,null,null,null,null,null,null,null,null,null,null,null,null,null,null,null,null,null,null,null,null,null,null,null,null,null,null,null,null,null,null,null,null,null,null,null,null,null,null,null,null,null,null,null,null,null,null,null,null,null,null,null,null,null,null,null,null,null,null,null,null,null,null,null,null,null,null,null,null,null,null,null,null,null,null,null,null,null,null,null,null,null,null,null,null,null,null,null,null,null,null,null,null,null,970,280]
[null,null,null,null,null,null,null,null,null,null,null,null,null,null,null,null,null,null,null,null,null,null,null,null,null,null,null,null,null,null,null,null,null,null,null,null,null,null,null,null,null,null,null,null,null,null,null,null,null,null,null,null,null,null,null,null,null,null,null,null,null,null,null,null,null,null,null,null,null,null,null,null,null,null,null,null,null,null,null,null,null,null,null,null,null,null,null,null,null,null,null,null,null,null,null,null,null,null,980,280]
[null,null,null,null,null,null,null,null,null,null,null,null,null,null,null,null,null,null,null,null,null,null,null,null,null,null,null,null,null,null,null,null,null,null,null,null,null,null,null,null,null,null,null,null,null,null,null,null,null,null,null,null,null,null,null,null,null,null,null,null,null,null,null,null,null,null,null,null,null,null,null,null,null,null,null,null,null,null,null,null,null,null,null,null,null,null,null,null,null,null,null,null,null,null,null,null,null,null,981,280]
[null,null,null,null,null,null,null,null,null,null,null,null,null,null,null,null,null,null,null,null,null,null,null,null,null,null,null,null,null,null,null,null,null,null,null,null,null,null,null,null,null,null,null,null,null,null,null,null,null,null,null,null,null,null,null,null,null,null,null,null,null,null,null,null,null,null,null,null,null,null,null,null,null,null,null,null,null,null,null,null,null,null,null,null,null,null,null,null,null,null,null,null,null,null,null,null,null,null,982,280]
[null,null,null,null,null,null,null,null,null,null,null,null,null,null,null,null,null,null,null,null,null,null,null,null,null,null,null,null,null,null,null,null,null,null,null,null,null,null,null,null,null,null,null,null,null,null,null,null,null,null,null,null,null,null,null,null,null,null,null,null,null,null,null,null,null,null,null,null,null,null,null,null,null,null,null,null,null,null,null,null,null,null,null,null,null,null,null,null,null,null,null,null,null,null,null,null,null,null,983,280]
[null,null,null,null,null,null,null,null,null,null,null,null,null,null,null,null,null,null,null,null,null,null,null,null,null,null,null,null,null,null,null,null,null,null,null,null,null,null,null,null,null,null,null,null,null,null,null,null,null,null,null,null,null,null,null,null,null,null,null,null,null,null,null,null,null,null,null,null,null,null,null,null,null,null,null,null,null,null,null,null,null,null,null,null,null,null,null,null,null,null,null,null,null,null,null,null,null,null,984,280]
[null,null,null,null,null,null,null,null,null,null,null,null,null,null,null,null,null,null,null,null,null,null,null,null,null,null,null,null,null,null,null,null,null,null,null,null,null,null,null,null,null,null,null,null,null,null,null,null,null,null,null,null,null,null,null,null,null,null,null,null,null,null,null,null,null,null,null,null,null,null,null,null,null,null,null,null,null,null,null,null,null,null,null,null,null,null,null,null,null,null,null,null,null,null,null,null,null,null,985,280]
[null,null,null,null,null,null,null,null,null,null,null,null,null,null,null,null,null,null,null,null,null,null,null,null,null,null,null,null,null,null,null,null,null,null,null,null,null,null,null,null,null,null,null,null,null,null,null,null,null,null,null,null,null,null,null,null,null,null,null,null,null,null,null,null,null,null,null,null,null,null,null,null,null,null,null,null,null,null,null,null,null,null,null,null,null,null,null,null,null,null,null,null,null,null,null,null,null,null,986,280]
[null,null,null,null,null,null,null,null,null,null,null,null,null,null,null,null,null,null,null,null,null,null,null,null,null,null,null,null,null,null,null,null,null,null,null,null,null,null,null,null,null,null,null,null,null,null,null,null,null,null,null,null,null,null,null,null,null,null,null,null,null,null,null,null,null,null,null,null,null,null,null,null,null,null,null,null,null,null,null,null,null,null,null,null,null,null,null,null,null,null,null,null,null,null,null,null,null,null,987,280]
[null,null,null,null,null,null,null,null,null,null,null,null,null,null,null,null,null,null,null,null,null,null,null,null,null,null,null,null,null,null,null,null,null,null,null,null,null,null,null,null,null,null,null,null,null,null,null,null,null,null,null,null,null,null,null,null,null,null,null,null,null,null,null,null,null,null,null,null,null,null,null,null,null,null,null,null,null,null,null,null,null,null,null,null,null,null,null,null,null,null,null,null,null,null,null,null,null,null,990,280]
[null,null,null,null,null,null,null,null,null,null,null,null,null,null,null,null,null,null,null,null,null,null,null,null,null,null,null,null,null,null,null,null,null,null,null,null,null,null,null,null,null,null,null,null,null,null,null,null,null,null,null,null,null,null,null,null,null,null,null,null,null,null,null,null,null,null,null,null,null,null,null,null,null,null,null,null,null,null,null,null,null,null,null,null,null,null,null,null,null,null,null,null,null,null,null,null,null,null,995,0]

{"sheet":"Carte - Admissibilité - APERR","index":2,"n_rows":0,"n_cols":0,"rows_kept":0,"cut":false,"hidden":true,"merged":[]}

{"sheet":"Versions du fichier","index":3,"n_rows":6,"n_cols":20,"rows_kept":6,"cut":false,"hidden":true,"merged":[[0,0,0,16],[0,19,0,24]]}
["Programme d’investissement en aménagement forestier (PIAF) - Volet II\nForêt publique\nSuivi des versions du fichier de l'annexe au rapport et au calcul de l'aide à l’aménagement des forêts issues d’une perturbation d’origine naturelle sans intervention subséquente et dominées par l’érable rouge et les feuillus intolérants pour l'exercice 2020-2021",null,null,null,null,null,null,null,null,null,null,null,null,null,null,null,null,null,null,"Version 1 : 2020-07-20"]
[]
["Version 1","Nom du fichier :","Calcul_aide_PIAF_Volet_II_ APERR_2020-2021_2020-07-20.xlsm"]
[{"$f":"A3","v":"Version 1"},"Date de mise en ligne :","2020-07-21"]
[{"$f":"A4","v":"Version 1"},"Remarques :","• Version officielle"]
[{"$f":"A5","v":"Version 1"}]

{"sheet":"Menus","index":4,"n_rows":110,"n_cols":4,"rows_kept":110,"cut":false,"hidden":true,"merged":[]}
["Question (pondération via RechercheV du bloc Question)"]
["Oui",1]
["Non",0]
["Non admissible"]
[]
["UA"]
["01171"]
["01272"]
["11161"]
[]
["ZT (benchmark ZT 154)","Aide","Facteur Benchmark","Plafond"]
[151,840.32667253161117,1.6132958501842183,900]
[152,552.86164169093399,1.0614079279180153,600]
[153,568.62606153161028,1.0916731496952856,600]
[154,520.87574169093432,1,600]
[155,528.52519169093421,1.0146857482269518,600]
[156,425.49429169093401,0.81688252616572099,500]
[180,666.58601453161077,1.2797409462142599,700]
[181,735.94134417459372,1.412892337403707,800]
["Inscrire une valeur"]
[]
["Formule"]
["Constante",-62.639465618532256]
["Variable X 1",6.2754848064549575]
["Variable X 2",-5.5088532111671782]
[]
["Question","Planification","BGAD","Ministère"]
[{"$f":"'Calcul de l''aide - APERR'!A15:F15","v":"Secteur d’intervention où l’ensemble des peuplements sont issus d’une perturbation d’origine naturelle sans intervention subséquente et âgés d’au moins 50 ans ?"},{"$f":"IFERROR(VLOOKUP('Calcul de l''aide - APERR'!G15,Menus!$A$2:$B$3,2,FALSE),0)","v":0},{"$f":"IFERROR(VLOOKUP('Calcul de l''aide - APERR'!H15,Menus!$A$2:$B$3,2,FALSE),0)","v":0},{"$f":"IFERROR(VLOOKUP('Calcul de l''aide - APERR'!I15,Menus!$A$2:$B$3,2,FALSE),0)","v":0}]
[{"$f":"'Calcul de l''aide - APERR'!A16:F16","v":"Secteur d'intervention bénéficiant d'une autre aide PIAF  ?\nLe cas échéant, inscrire le montant à l'hectare ($/ha) à la ligne suivante :"},{"$f":"IFERROR(VLOOKUP('Calcul de l''aide - APERR'!G16,Menus!$A$2:$B$3,2,FALSE),0)","v":0},{"$f":"IFERROR(VLOOKUP('Calcul de l''aide - APERR'!H16,Menus!$A$2:$B$3,2,FALSE),0)","v":0},{"$f":"IFERROR(VLOOKUP('Calcul de l''aide - APERR'!I16,Menus!$A$2:$B$3,2,FALSE),0)","v":0}]
[{"$f":"'Calcul de l''aide - APERR'!A17:F17","v":"Montant de l'aide déjà accordée ($/ha) en vertu du\nProgramme d'investissement en aménagement forestier (PIAF)"},{"$f":"'Calcul de l''aide - APERR'!G17","v":0},{"$f":"'Calcul de l''aide - APERR'!H17","v":0},{"$f":"'Calcul de l''aide - APERR'!I17","v":0}]
[{"$f":"'Calcul de l''aide - APERR'!A18:F18","v":"Scénario sylvicole de base, intensif ou d'élite ?"},{"$f":"IFERROR(VLOOKUP('Calcul de l''aide - APERR'!G18,Menus!$A$2:$B$3,2,FALSE),0)","v":0},{"$f":"IFERROR(VLOOKUP('Calcul de l''aide - APERR'!H18,Menus!$A$2:$B$3,2,FALSE),0)","v":0},{"$f":"IFERROR(VLOOKUP('Calcul de l''aide - APERR'!I18,Menus!$A$2:$B$3,2,FALSE),0)","v":0}]
[{"$f":"'Calcul de l''aide - APERR'!A19:F19","v":"Volume des feuillus tolérants  ≤ 20 %  du volume total ?"},{"$f":"IFERROR(VLOOKUP('Calcul de l''aide - APERR'!G19,Menus!$A$2:$B$3,2,FALSE),0)","v":0},{"$f":"IFERROR(VLOOKUP('Calcul de l''aide - APERR'!H19,Menus!$A$2:$B$3,2,FALSE),0)","v":0},{"$f":"IFERROR(VLOOKUP('Calcul de l''aide - APERR'!I19,Menus!$A$2:$B$3,2,FALSE),0)","v":0}]
[{"$f":"'Calcul de l''aide - APERR'!A20:F20","v":"Volume des feuillus intolérants et de l’érable rouge ≥ 40% du volume total  dont au moins 15% du volume total en érable rouge ? "},{"$f":"IFERROR(VLOOKUP('Calcul de l''aide - APERR'!G20,Menus!$A$2:$B$3,2,FALSE),0)","v":0},{"$f":"IFERROR(VLOOKUP('Calcul de l''aide - APERR'!H20,Menus!$A$2:$B$3,2,FALSE),0)","v":0},{"$f":"IFERROR(VLOOKUP('Calcul de l''aide - APERR'!I20,Menus!$A$2:$B$3,2,FALSE),0)","v":0}]
[{"$f":"'Calcul de l''aide - APERR'!A21:F21","v":"Récolte réalisée par coupe de régénération et > 50% de la surface terrière est récoltée ?"},{"$f":"IFERROR(VLOOKUP('Calcul de l''aide - APERR'!G21,Menus!$A$2:$B$3,2,FALSE),0)","v":0},{"$f":"IFERROR(VLOOKUP('Calcul de l''aide - APERR'!H21,Menus!$A$2:$B$3,2,FALSE),0)","v":0},{"$f":"IFERROR(VLOOKUP('Calcul de l''aide - APERR'!I21,Menus!$A$2:$B$3,2,FALSE),0)","v":0}]
[]
["Pourcentage (calcul dynamique pour les formules)","Planification","BGAD","Ministère"]
[null,{"$f":"IFERROR('Calcul de l''aide - APERR'!G23/'Calcul de l''aide - APERR'!G26,0)","v":0},{"$f":"IFERROR('Calcul de l''aide - APERR'!H23/'Calcul de l''aide - APERR'!H26,0)","v":0},{"$f":"IFERROR('Calcul de l''aide - APERR'!I23/'Calcul de l''aide - APERR'!I26,0)","v":0}]
[0.4,{"$f":"IFERROR(IF(B37>=$A$38,1,0),0)","v":0},{"$f":"IFERROR(IF(C37>=$A$38,1,0),0)","v":0},{"$f":"IFERROR(IF(D37>=$A$38,1,0),0)","v":0}]
[null,{"$f":"IFERROR('Calcul de l''aide - APERR'!G25/'Calcul de l''aide - APERR'!G26,0)","v":0},{"$f":"IFERROR('Calcul de l''aide - APERR'!H25/'Calcul de l''aide - APERR'!H26,0)","v":0},{"$f":"IFERROR('Calcul de l''aide - APERR'!I25/'Calcul de l''aide - APERR'!I26,0)","v":0}]
[0.2,{"$f":"IF(B39<=$A$40,1,0)","v":1},{"$f":"IF(C39<=$A$40,1,0)","v":1},{"$f":"IF(D39<=$A$40,1,0)","v":1}]
[]
["Contexte"]
["Planification"]
["BGAD"]
["Ministère"]
["Inscrire une valeur"]
[]
["Codes_Dica"]
["CPHRS-BOUQ"]
["CPHRS-ILOT"]
["CPHRS-SLEG"]
["CPHRS-TIGE"]
["CPPTM_DIS"]
["CPPTM_DIS-BOUQ"]
["CPPTM_DIS-ILOT"]
["CPPTM_U"]
["CPRS_U-BOUQ"]
["CPRS_U-ILOT"]
["CPRS_U-SLEG"]
["CPRS_U-TIGE"]
["CRS-BOUQ"]
["CRS-ILOT"]
["CRS-SLEG"]
["CRS-TIGE"]
["CS-BOUQ"]
["CS-ILOT"]
["CS-SLEG"]
["CS-TIGE"]
["CTSP_BA"]
["CTSP_DA"]
["CTSP_PA"]
["CTSP_T"]
["CTSP_U-BOUQ"]
["CTSP_U-ILOT"]
["CTSP_U-SLEG"]
["CTSP_U-TIGE"]
[]
["Codes_RATF"]
["CPRSSLEG"]
["CPRSTIGE"]
["CPRSBOUQ"]
["CPRSILOT"]
["CTSPSLEG"]
["CTSPTIGE"]
["CTSPBOUQ"]
["CTSPILOT"]
["CTSPBA"]
["CTSPPA"]
["CTSPDA"]
["CTSPT"]
["CPHRSSLEG"]
["CPHRSTIGE"]
["CPHRSBOUQ"]
["CPHRSILOT"]
["CRSSLEG"]
["CRSTIGE"]
["CRSBOUQ"]
["CRSILOT"]
["CSSLEG"]
["CSTIGE"]
["CSBOUQ"]
["CSILOT"]
["CPPTMU"]
["CPPTMDIS"]
["CPPTMBOUQ"]
["CPPTMILOT"]
["CPRSBA"]
["CPRSPA"]
["CPRSDA"]
["CPRST"]

{"sheet":"Log","index":5,"n_rows":2,"n_cols":4,"rows_kept":2,"cut":false,"hidden":true,"merged":[]}
["Utilisateur","Date","OS","Excel"]
["Pouliot, Simon (BMMB)","2020-07-20T12:35:59","Windows (32-bit) NT 6.01","15.0"]